[Event "XIII Figueira da Foz Open 2019"]
[Site "Figueira da Foz"]
[Date "2019.11.03"]
[Round "9.15"]
[White "Silva, Mariana Sofia T."]
[Black "Barros Gutierrez, Angel Luis"]
[Result "1-0"]
[ECO "A04"]
[WhiteElo "1880"]
[BlackElo "2038"]
[Annotator "NA"]
[PlyCount "125"]
[EventDate "2019.10.27"]
[EventType "swiss"]
[EventCountry "POR"]
[SourceTitle "playchess.com"]
[Source "ChessBase"]
[SourceQuality "1"]
[TimeControl "40/5400+30:1800+30"]

1. Nf3 c5 2. c4 Nf6 3. g3 d5 4. cxd5 Nxd5 5. Bg2 g6 6. Nc3 Nxc3 7. bxc3 Bg7 8. O-O Nc6 9. Rb1 Qa5 10. Qb3 O-O 11. Bb2 {A34: Symmetrical English: 2 Nc3, lines with ...d5} (11. Qa3 Qxa3 12. Bxa3 b6 13. d4 Bf5 14. Rbc1 Na5 15. dxc5 Nc4 16. Bb4 a5 17. Nd4 Rac8 18. Nxf5 gxf5 19. cxb6 axb4 {½-½ (32) Akopian,V (2691)-Safarli,E (2660) Khanty-Mansiysk 2013}) 11... Rb8 12. d4 $146 ({Predecessor:} 12. c4 Nd4 13. Nxd4 cxd4 14. d3 Qh5 15. Ba3 Bf6 16. Qc2 Bh3 17. Rb5 Qg4 18. Bf3 Qe6 {1-0 (51) Orzechowski,J (2225)-Witwicki,P (1915) Polanica Zdroj 2012}) 12... b6 13. d5 Ne5 14. Nd2 b5 15. Ba3 Qc7 16. Ne4 c4 17. Qb4 f5 18. d6 exd6 19. Qxd6 Qa5 20. Bb4 Qb6 21. Qxb6 Rxb6 22. Bxf8 Kxf8 23. Ng5 h6 24. Nh3 Ng4 25. Rfd1 Ke7 26. Nf4 Be6 27. h3 Ne5 28. Nd5+ Bxd5 29. Rxd5 a6 30. a4 Nf7 31. axb5 Nd6 32. Rc5 axb5 33. Rc7+ Kf8 34. Rc6 Rxc6 35. Bxc6 Bxc3 36. Bxb5 Bd2 37. Ba4 Ne4 38. Bc2 c3 39. Rb8+ Ke7 40. Bxe4 fxe4 41. Rc8 Kd6 (41... Kd7 {was called for.} 42. Rc4 e3 43. fxe3 Bxe3+ 44. Kf1 Bd2) 42. Kf1 Kd5 43. e3 h5 44. Ke2 Ke5 45. Rc5+ Kf6 46. h4 Ke6 47. Rg5 Kf6 48. Kd1 Kf7 49. Re5 Kf6 50. Rxe4 g5 51. hxg5+ Kxg5 52. Rd4 Kf5 53. Rxd2 cxd2 54. Kxd2 Kg4 55. Ke2 Kf5 56. Kf3 Kg5 57. e4 Kf6 58. Kf4 Kg6 59. e5 Kh6 60. Kf5 Kg7 61. e6 Kf8 62. Kf6 Ke8 63. e7 1-0

[Event "XIII Figueira da Foz Open 2019"]
[Site "Figueira da Foz"]
[Date "2019.11.03"]
[Round "9.16"]
[White "Barrento, Jorge Maria Lopes"]
[Black "Goncalves, Lucas Jordao"]
[Result "0-1"]
[ECO "D00"]
[WhiteElo "1739"]
[BlackElo "1447"]
[Annotator "NA"]
[PlyCount "60"]
[EventDate "2019.10.27"]
[EventType "swiss"]
[EventCountry "POR"]
[SourceTitle "playchess.com"]
[Source "ChessBase"]
[SourceQuality "1"]
[TimeControl "40/5400+30:1800+30"]

1. d4 {[%emt 0:04:40]} d5 {[%emt 0:00:15]} 2. e4 {[%emt 0:00:20]} dxe4 {[%emt 0:00:45]} 3. Nc3 {[%emt 0:01:24]} Nf6 {[%emt 0:00:16]} 4. f3 {[%emt 0:00:01]} c6 {[%emt 0:01:27]} 5. fxe4 {[%emt 0:00:37]} e5 {[%emt 0:00:21]} 6. dxe5 {[%emt 0:00:47]} Qxd1+ {[%emt 0:00:09]} 7. Kxd1 {[%emt 0:00:38]} Ng4 {[%emt 0:00:10]} 8. Ke1 {[%emt 0:00:51]} Nxe5 {[%emt 0:00:38]} 9. Nf3 {[%emt 0:00:26]} Nxf3+ {[%emt 0:01:06]} 10. gxf3 {[%emt 0:00:07]} Bc5 {[%emt 0:00:10]} 11. Bc4 {[%emt 0:01:09]} Bh3 {[%emt 0:04:49]} 12. Bf1 {[%emt 0:05:15]} Bxf1 {[%emt 0:00:09]} 13. Kxf1 {[%emt 0:00:11]} Nd7 {[%emt 0:00:03]} 14. Bf4 {[%emt 0:00:50]} Bd4 {[%emt 0:02:17]} 15. Ne2 {[%emt 0:01:42]} Be5 {[%emt 0:01:35]} 16. Be3 {[%emt 0:02:01]} O-O-O {[%emt 0:01:04]} 17. f4 {[%emt 0:01:23]} Bxb2 {[%emt 0:00:48]} 18. Rb1 {[%emt 0:00:23]} Ba3 19. Bxa7 {[%emt 0:00:04]} Bc5 {[%emt 0:00:23]} 20. Bxc5 {[%emt 0:01:29]} Nxc5 {[%emt 0:00:07]} 21. e5 {[%emt 0:01:16]} Rd2 {[%emt 0:03:01]} 22. Rc1 {[%emt 0:07:40]} Kc7 {[%emt 0:05:21]} 23. Ng3 {[%emt 0:07:33]} Ra8 {[%emt 0:00:56]} 24. Nf5 {[%emt 0:01:17]} Rxa2 {[%emt 0:01:09]} 25. Nxg7 {[%emt 0:00:20]} Raxc2 {[%emt 0:00:10]} 26. Rxc2 {[%emt 0:00:27]} Rxc2 {[%emt 0:00:07]} 27. Ne8+ {[%emt 0:00:17]} Kd8 {[%emt 0:01:26]} 28. Nd6 {[%emt 0:00:15]} Nd3 {[%emt 0:02:07]} 29. Nxf7+ {[%emt 0:07:36]} Ke7 {[%emt 0:02:13]} 30. Ng5 {[%emt 0:00:10]} Rc1+ {[%emt 0:00:15]} 0-1

[Event "XIII Figueira da Foz Open 2019"]
[Site "Figueira da Foz"]
[Date "2019.11.03"]
[Round "9.17"]
[White "Dong, Rafael"]
[Black "Correia, Mario"]
[Result "0-1"]
[ECO "E62"]
[WhiteElo "1486"]
[BlackElo "2140"]
[Annotator "ChessBase"]
[PlyCount "116"]
[EventDate "2019.10.27"]
[EventType "swiss"]
[EventCountry "POR"]
[SourceTitle "playchess.com"]
[Source "ChessBase"]
[SourceQuality "1"]
[TimeControl "40/5400+30:1800+30"]

1. c4 {[%emt 0:00:00]} Nf6 {[%emt 0:00:22]} 2. Nc3 {[%emt 0:00:00]} g6 {[%emt 0:00:10]} 3. g3 {[%emt 0:00:00]} Bg7 {[%emt 0:00:12]} 4. Bg2 {[%emt 0:00:33]} O-O {[%emt 0:00:11]} 5. Nf3 {[%emt 0:00:12]} d6 {[%emt 0:00:09]} 6. d4 {[%emt 0:00:21]} Nc6 {[%emt 0:00:15]} 7. O-O {[%emt 0:00:34]} Bf5 {[%emt 0:01:25]} 8. d5 {[%emt 0:02:21]} Na5 {[%emt 0:00:53]} 9. Nd2 {[%emt 0:00:09]} c5 {[%emt 0:00:12]} 10. e4 {[%emt 0:02:46]} Bc8 {[%emt 0:00:30]} 11. Qc2 {[%emt 0:01:04]} a6 {[%emt 0:00:16]} 12. b3 {[%emt 0:00:20]} b5 {[%emt 0:00:08]} 13. Bb2 {[%emt 0:00:06]} Rb8 {[%emt 0:00:20]} 14. Rae1 {[%emt 0:01:38]} bxc4 {[%emt 0:03:38]} 15. Nxc4 {[%emt 0:01:14]} Nxc4 {[%emt 0:00:10]} 16. bxc4 {[%emt 0:00:10]} Rb4 {[%emt 0:01:09]} 17. Qe2 {[%emt 0:01:10]} Ng4 {[%emt 0:01:43]} 18. a3 {[%emt 0:01:53]} Rb3 {[%emt 0:00:54]} 19. Rc1 {[%emt 0:08:35]} Qb6 {[%emt 0:07:01]} 20. Rc2 {[%emt 0:02:21]} Bd7 {[%emt 0:01:20]} 21. Na4 {[%emt 0:05:17]} Bxa4 {[%emt 0:01:07]} 22. Bxg7 {[%emt 0:00:33]} Kxg7 {[%emt 0:00:12]} 23. Qxg4 {[%emt 0:00:10]} Rxa3 {[%emt 0:00:32]} 24. Rcc1 {[%emt 0:00:08]} Rb8 {[%emt 0:01:31]} 25. h4 {[%emt 0:05:46]} h5 {[%emt 0:00:07]} 26. Qe2 {[%emt 0:04:45]} Qb2 {[%emt 0:01:15]} 27. Qxb2+ {[%emt 0:01:10]} Rxb2 {[%emt 0:03:51]} 28. Rb1 {[%emt 0:00:11]} Raa2 {[%emt 0:00:18]} 29. Rxb2 {[%emt 0:01:33]} Rxb2 {[%emt 0:00:01]} 30. Ra1 {[%emt 0:00:18]} Rb4 {[%emt 0:00:20]} 31. Bf1 {[%emt 0:00:24]} a5 {[%emt 0:01:45]} 32. Kg2 {[%emt 0:01:33]} Bc2 {[%emt 0:00:10]} 33. Kf3 {[%emt 0:01:14]} Rb1 {[%emt 0:00:25]} 34. Ra2 {[%emt 0:01:49]} Bxe4+ {[%emt 0:00:08]} 35. Kxe4 {[%emt 0:00:10]} Rxf1 {[%emt 0:00:06]} 36. Ke3 {[%emt 0:00:18]} Re1+ {[%emt 0:00:44]} 37. Kd2 {[%emt 0:00:59]} Rf1 {[%emt 0:01:48]} 38. Ke3 {[%emt 0:00:46]} Rb1 {[%emt 0:00:49]} 39. Rxa5 {[%emt 0:01:14]} Rb4 {[%emt 0:00:05]} 40. Kd3 {[%emt 0:00:00]} Kf6 {[%emt 0:00:00]} 41. Ra2 {[%emt 0:00:38]} Rb3+ {[%emt 0:01:56]} 42. Ke4 {[%emt 0:00:42]} Rc3 {[%emt 0:00:56]} 43. Ra4 {[%emt 0:00:52]} Kg7 {[%emt 0:00:22]} 44. Kf4 {[%emt 0:01:14]} Kf6 {[%emt 0:02:43]} 45. Ke4 {[%emt 0:00:43]} e6 {[%emt 0:00:19]} 46. f3 {[%emt 0:04:18]} exd5+ {[%emt 0:03:03]} 47. Kxd5 {[%emt 0:02:41]} Rd3+ {[%emt 0:00:15]} 48. Ke4 {[%emt 0:00:50]} Rd4+ {[%emt 0:00:02]} 49. Ke3 {[%emt 0:00:09]} Kf5 {[%emt 0:00:17]} 50. Ke2 {[%emt 0:01:56]} f6 {[%emt 0:00:06]} 51. Ke3 {[%emt 0:00:23]} d5 {[%emt 0:00:13]} 52. Ra3 {[%emt 0:05:26]} Rxc4 {[%emt 0:00:12]} 53. Rd3 {[%emt 0:00:52]} Rc3 {[%emt 0:00:47]} 54. Rxc3 {[%emt 0:00:28]} d4+ {[%emt 0:00:07]} 55. Kd3 {[%emt 0:00:02]} dxc3 {[%emt 0:00:08]} 56. Kxc3 {[%emt 0:00:05]} Ke5 {[%emt 0:00:07]} 57. Kc4 {[%emt 0:00:07]} Kd6 {[%emt 0:00:09]} 58. g4 {[%emt 0:00:15]} Kc6 {[%emt 0:00:11] Kd4} 0-1

[Event "XIII Figueira da Foz Open 2019"]
[Site "Figueira da Foz"]
[Date "2019.11.03"]
[Round "9.18"]
[White "Heeren, Arnoldo"]
[Black "Dong, Fabio"]
[Result "1/2-1/2"]
[ECO "A06"]
[WhiteElo "1929"]
[BlackElo "1410"]
[Annotator "NA"]
[PlyCount "66"]
[EventDate "2019.10.27"]
[EventType "swiss"]
[EventCountry "POR"]
[SourceTitle "playchess.com"]
[Source "ChessBase"]
[SourceQuality "1"]
[TimeControl "40/5400+30:1800+30"]

1. Nf3 {[%emt 0:00:00]} d5 {[%emt 0:00:00]} 2. g3 {[%emt 0:00:00]} Nf6 {[%emt 0:00:00]} 3. Bg2 {[%emt 0:00:00]} c6 {[%emt 0:00:19]} 4. d4 {[%emt 0:00:19]} Bf5 {[%emt 0:01:27]} 5. O-O {[%emt 0:00:48]} e6 {[%emt 0:00:51]} 6. Re1 {[%emt 0:02:43]} Nbd7 {[%emt 0:01:42]} 7. a3 {[%emt 0:03:12]} Be7 {[%emt 0:02:52]} 8. Nc3 {[%emt 0:00:35]} Ne4 {[%emt 0:00:42]} 9. Nxe4 Bxe4 {[%emt 0:00:27]} 10. c3 {[%emt 0:06:54]} O-O {[%emt 0:01:32]} 11. Nd2 {[%emt 0:02:36]} Bg6 {[%emt 0:11:39]} 12. e4 {[%emt 0:08:16]} Rc8 13. e5 {[%emt 0:00:30]} c5 {[%emt 0:13:54]} 14. Nf3 {[%emt 0:01:46]} c4 {[%emt 0:04:39]} 15. Be3 {[%emt 0:01:35]} Qb6 {[%emt 0:02:44]} 16. Qd2 {[%emt 0:02:56]} Qb3 {[%emt 0:08:45]} 17. Rec1 {[%emt 0:09:07]} Be4 {[%emt 0:00:46]} 18. Ne1 {[%emt 0:00:48]} Bxg2 {[%emt 0:00:38]} 19. Kxg2 {[%emt 0:00:10]} Rfd8 {[%emt 0:04:01]} 20. f4 {[%emt 0:01:24]} f6 {[%emt 0:01:58]} 21. Nf3 {[%emt 0:02:43]} Rf8 {[%emt 0:01:53]} 22. Rf1 {[%emt 0:02:39]} fxe5 {[%emt 0:08:59]} 23. fxe5 {[%emt 0:01:17]} Rf7 {[%emt 0:00:56]} 24. Rf2 {[%emt 0:00:30]} Rcf8 25. Raf1 {[%emt 0:05:12]} Qb6 {[%emt 0:02:26]} 26. Qc2 {[%emt 0:02:22]} a5 {[%emt 0:03:25]} 27. Bg5 {[%emt 0:07:28]} h6 {[%emt 0:11:14]} 28. Bc1 Rf5 {[%emt 0:00:29]} 29. h3 {[%emt 0:01:31]} Qb3 {[%emt 0:01:22]} 30. Qe2 {[%emt 0:05:25]} Qb6 31. Nh2 {[%emt 0:01:33]} Rxf2+ {[%emt 0:02:31]} 32. Rxf2 {[%emt 0:01:04]} Rxf2+ {[%emt 0:00:00]} 33. Qxf2 Qd8 1/2-1/2

[Event "XIII Figueira da Foz Open 2019"]
[Site "Figueira da Foz"]
[Date "2019.11.03"]
[Round "9.19"]
[White "Moes Joaquim, Carlos"]
[Black "Babo, Miguel"]
[Result "0-1"]
[ECO "A50"]
[WhiteElo "1400"]
[BlackElo "1827"]
[Annotator "NA"]
[PlyCount "90"]
[EventDate "2019.10.27"]
[EventType "swiss"]
[EventCountry "POR"]
[SourceTitle "playchess.com"]
[Source "ChessBase"]
[SourceQuality "1"]
[TimeControl "40/5400+30:1800+30"]

1. d4 b6 2. c4 Nf6 3. Nc3 Bb7 4. Bf4 e6 5. e3 d5 {[%emt 0:19:10]} 6. Nf3 {[%emt 0:08:32]} Nbd7 {[%emt 0:00:27]} 7. h3 {[%emt 0:00:37]} Be7 {[%emt 0:00:30]} 8. Nb5 {[%emt 0:05:20]} O-O {[%emt 0:02:10]} 9. Bxc7 {[%emt 0:00:25]} Bb4+ {[%emt 0:00:30]} 10. Nd2 {[%emt 0:00:30]} Qc8 {[%emt 0:00:30]} 11. Bd6 {[%emt 0:00:30]} Bxd6 {[%emt 0:00:30]} 12. Nxd6 {[%emt 0:00:30]} Qb8 {[%emt 0:00:30]} 13. Nxb7 {[%emt 0:00:30]} Qxb7 {[%emt 0:00:30]} 14. cxd5 {[%emt 0:00:30]} Nxd5 {[%emt 0:00:30]} 15. Be2 {[%emt 0:00:30]} Rac8 {[%emt 0:05:02]} 16. O-O Nb4 {[%emt 0:02:05]} 17. a3 Nd5 {[%emt 0:00:30]} 18. Qa4 Nb8 {[%emt 0:00:30]} 19. Ne4 Qe7 {[%emt 0:00:30]} 20. Rac1 Rc7 {[%emt 0:00:30]} 21. Rxc7 Qxc7 {[%emt 0:00:30]} 22. Qb3 Rc8 {[%emt 0:00:30]} 23. Bd3 h6 {[%emt 0:00:30]} 24. Bb1 g6 {[%emt 0:00:30]} 25. g3 Kg7 {[%emt 0:00:30]} 26. Nd2 Nd7 {[%emt 0:00:30]} 27. e4 N5f6 {[%emt 0:00:30]} 28. e5 {[%emt 0:10:02]} Ne8 {[%emt 0:26:29]} 29. h4 {[%emt 0:47:12]} h5 {[%emt 0:05:08]} 30. Qe3 {[%emt 0:07:15]} Qc6 {[%emt 0:00:53]} 31. Be4 {[%emt 0:01:23]} Qb5 {[%emt 0:01:10]} 32. b4 {[%emt 0:00:17]} a5 {[%emt 0:00:30]} 33. bxa5 {[%emt 0:01:14]} Qxa5 {[%emt 0:01:59]} 34. Rb1 {[%emt 0:03:21]} Rc3 {[%emt 0:09:25]} 35. Qg5 Rc7 36. g4 {[%emt 0:08:53]} hxg4 {[%emt 0:04:27]} 37. h5 {[%emt 0:00:11]} Nf8 {[%emt 0:00:17]} 38. h6+ {[%emt 0:00:32]} Kh7 {[%emt 0:01:01]} 39. Nf1 {[%emt 0:02:20]} f6 {[%emt 0:00:30]} 40. Qh4 {[%emt 0:00:30]} f5 {[%emt 0:00:30]} 41. Bg2 {[%emt 0:30:30]} Qxa3 {[%emt 0:09:54]} 42. Rxb6 {[%emt 0:00:00]} Qa7 {[%emt 0:06:13]} 43. Rb4 {[%emt 0:00:00]} Rf7 {[%emt 0:00:30]} 44. Qd8 {[%emt 0:00:00]} Qe7 {[%emt 0:05:29]} 45. Qb8 {[%emt 0:00:00]} Kxh6 {[%emt 0:05:19]} 0-1